[Event "Titled Tuesday Blitz June 20 Early 2023"]
[White "Liu, Casper"]
[Black "Mazurkiewicz, Michal"]
[WhiteFideId "1454153"]
[BlackFideId "1124943"]
[WhiteElo "2221"]
[BlackElo "2063"]
[Result "1-0"]
[Round "8"]
[TimeControl "180+2"]
[Date "2023.06.20"]
[WhiteClock "0:02:15"]
[BlackClock "0:00:00"]
[Board "125"]

1. e4 {[%clk 0:03:00]}  d6 {[%clk 0:02:32]} 2. d4 {[%clk 0:03:01]}  Nf6 {[%clk 0:02:33]} 3. Bd3 {[%clk 0:03:01]}  e5 {[%clk 0:02:32]} 4. dxe5 {[%clk 0:03:01]}  dxe5 {[%clk 0:02:32]} 5. Nf3 {[%clk 0:03:01]}  Bd6 {[%clk 0:02:30]} 6. O-O {[%clk 0:03:02]}  O-O {[%clk 0:02:30]} 7. Qe2 {[%clk 0:02:59]}  b6 {[%clk 0:02:30]} 8. Bg5 {[%clk 0:02:59]}  Bb7 {[%clk 0:02:29]} 9. Nc3 {[%clk 0:02:59]}  Nbd7 {[%clk 0:02:25]} 10. Rad1 {[%clk 0:02:59]}  h6 {[%clk 0:02:14]} 11. Bh4 {[%clk 0:02:58]}  Be7 {[%clk 0:02:13]} 12. Bb5 {[%clk 0:02:54]}  c6 {[%clk 0:01:57]} 13. Nxe5 {[%clk 0:02:50]}  cxb5 {[%clk 0:01:04]} 14. Bxf6 {[%clk 0:02:48]}  Bxf6 {[%clk 0:01:04]} 15. Nxd7 {[%clk 0:02:46]}  Re8 {[%clk 0:00:44]} 16. e5 {[%clk 0:02:46]}  Qe7 {[%clk 0:00:27]} 17. Qg4 {[%clk 0:02:29]}  Bxe5 {[%clk 0:00:24]} 18. Rfe1 {[%clk 0:02:29]}  f6 {[%clk 0:00:10]} 19. Nxe5 {[%clk 0:02:29]}  fxe5 {[%clk 0:00:10]} 20. Rd7 {[%clk 0:02:29]}  Bc8 {[%clk 0:00:07]} 21. Rxe7 {[%clk 0:02:24]}  Bxg4 {[%clk 0:00:07]} 22. Rxe8+ {[%clk 0:02:19]}  Rxe8 {[%clk 0:00:08]} 23. Nxb5 {[%clk 0:02:20]}  Re7 {[%clk 0:00:09]} 24. f3 {[%clk 0:02:19]}  Bf5 {[%clk 0:00:09]} 25. Nd4 {[%clk 0:02:19]}  Bg6 {[%clk 0:00:05]} 26. Nc6 {[%clk 0:02:18]}  Rc7 {[%clk 0:00:02]} 27. Nxe5 {[%clk 0:02:18]}  Bxc2 {[%clk 0:00:03]} 28. Rc1 {[%clk 0:02:18]}  Rc5 {[%clk 0:00:03]} 29. Kf2 {[%clk 0:02:15]}  Rxe5 {[%clk 0:00:03]} 30. Rxc2 {[%clk 0:02:16]}  Kf7 {[%clk 0:00:03]} 31. Rc7+ {[%clk 0:02:16]}  Re7 {[%clk 0:00:01]} 32. Rxe7+ {[%clk 0:02:16]}  Kxe7 {[%clk 0:00:02]} 33. g4 {[%clk 0:02:17]}  Kf6 {[%clk 0:00:03]} 34. f4 {[%clk 0:02:17]}  Ke6 {[%clk 0:00:02]} 35. Ke3 {[%clk 0:02:17]}  Kd5 {[%clk 0:00:03]} 36. h4 {[%clk 0:02:17]}  b5 {[%clk 0:00:03]} 37. g5 {[%clk 0:02:18]}  a6 {[%clk 0:00:00]} 38. b4 {[%clk 0:02:15]} 1-0


[Site "https://www.chess.com"]

[Event "Titled Tuesday Blitz June 20 Early 2023"]
[White "Alahakoon, Isuru"]
[Black "Bilan, Danila"]
[WhiteFideId "9900993"]
[BlackFideId "24161918"]
[WhiteElo "1819"]
[BlackElo "2146"]
[Result "1-0"]
[Round "8"]
[TimeControl "180+2"]
[Date "2023.06.20"]
[WhiteClock "0:00:15"]
[BlackClock "0:00:02"]
[Board "126"]

1. Nf3 {[%clk 0:03:00]}  d5 {[%clk 0:02:58]} 2. e3 {[%clk 0:03:00]}  Nf6 {[%clk 0:02:58]} 3. c4 {[%clk 0:03:00]}  c6 {[%clk 0:02:58]} 4. d4 {[%clk 0:02:59]}  e6 {[%clk 0:02:53]} 5. Nbd2 {[%clk 0:02:58]}  Nbd7 {[%clk 0:02:53]} 6. b3 {[%clk 0:02:57]}  Bd6 {[%clk 0:02:51]} 7. Bb2 {[%clk 0:02:56]}  Qe7 {[%clk 0:02:50]} 8. Bd3 {[%clk 0:02:54]}  e5 {[%clk 0:02:50]} 9. dxe5 {[%clk 0:02:51]}  Nxe5 {[%clk 0:02:50]} 10. Nxe5 {[%clk 0:02:49]}  Bxe5 {[%clk 0:02:51]} 11. Bxe5 {[%clk 0:02:49]}  Qxe5 {[%clk 0:02:52]} 12. O-O {[%clk 0:02:48]}  O-O {[%clk 0:02:18]} 13. cxd5 {[%clk 0:02:48]}  Nxd5 {[%clk 0:02:14]} 14. Nf3 {[%clk 0:02:44]}  Qf6 {[%clk 0:02:09]} 15. Bc4 {[%clk 0:02:35]}  Nc3 {[%clk 0:01:44]} 16. Qd4 {[%clk 0:02:32]}  b5 {[%clk 0:01:21]} 17. Qxf6 {[%clk 0:02:30]}  gxf6 {[%clk 0:01:22]} 18. Bd3 {[%clk 0:02:28]}  c5 {[%clk 0:01:18]} 19. Rac1 {[%clk 0:02:20]}  b4 {[%clk 0:01:13]} 20. Bc4 {[%clk 0:02:19]}  Be6 {[%clk 0:01:02]} 21. Ba6 {[%clk 0:01:57]}  Rfd8 {[%clk 0:00:57]} 22. Rc2 {[%clk 0:01:54]}  Bf5 {[%clk 0:00:57]} 23. Rb2 {[%clk 0:01:49]}  Rd6 {[%clk 0:00:53]} 24. Bc4 {[%clk 0:01:43]}  a5 {[%clk 0:00:50]} 25. Rc1 {[%clk 0:01:37]}  Rad8 {[%clk 0:00:44]} 26. h3 {[%clk 0:01:35]}  Rd1+ {[%clk 0:00:38]} 27. Rxd1 {[%clk 0:01:33]}  Rxd1+ {[%clk 0:00:38]} 28. Kh2 {[%clk 0:01:33]}  a4 {[%clk 0:00:35]} 29. bxa4 {[%clk 0:01:31]}  Nxa4 {[%clk 0:00:30]} 30. Rd2 {[%clk 0:01:28]}  Rxd2 {[%clk 0:00:12]} 31. Nxd2 {[%clk 0:01:29]}  Nb6 {[%clk 0:00:13]} 32. Bb3 {[%clk 0:01:23]}  Be6 {[%clk 0:00:13]} 33. Kg3 {[%clk 0:01:10]}  c4 {[%clk 0:00:13]} 34. Bc2 {[%clk 0:01:11]}  c3 {[%clk 0:00:13]} 35. Nb3 {[%clk 0:01:08]}  Nc4 {[%clk 0:00:13]} 36. Nc1 {[%clk 0:01:00]}  Nd2 {[%clk 0:00:08]} 37. f3 {[%clk 0:00:54]}  Kg7 {[%clk 0:00:05]} 38. Kf2 {[%clk 0:00:53]}  Bc4 {[%clk 0:00:05]} 39. e4 {[%clk 0:00:51]}  f5 {[%clk 0:00:05]} 40. exf5 {[%clk 0:00:48]}  Kf6 {[%clk 0:00:05]} 41. Ke3 {[%clk 0:00:48]}  Ke5 {[%clk 0:00:06]} 42. Bb3 {[%clk 0:00:43]}  Bf1 {[%clk 0:00:05]} 43. g4 {[%clk 0:00:42]}  f6 {[%clk 0:00:05]} 44. f4+ {[%clk 0:00:31]}  Kd6 {[%clk 0:00:05]} 45. Nd3 {[%clk 0:00:32]}  Bxh3 {[%clk 0:00:05]} 46. Nf2 {[%clk 0:00:24]}  Bf1 {[%clk 0:00:03]} 47. Ne4+ {[%clk 0:00:24]}  Ke7 {[%clk 0:00:03]} 48. Nxd2 {[%clk 0:00:23]}  cxd2 {[%clk 0:00:03]} 49. Kxd2 {[%clk 0:00:24]}  Kd6 {[%clk 0:00:04]} 50. Ke3 {[%clk 0:00:24]}  Bh3 {[%clk 0:00:04]} 51. Kf3 {[%clk 0:00:21]}  h6 {[%clk 0:00:04]} 52. Kg3 {[%clk 0:00:19]}  Bf1 {[%clk 0:00:05]} 53. Kh4 {[%clk 0:00:19]}  Be2 {[%clk 0:00:05]} 54. Kh5 {[%clk 0:00:17]}  Ke7 {[%clk 0:00:05]} 55. Kh4 {[%clk 0:00:16]}  Bf3 {[%clk 0:00:03]} 56. g5 {[%clk 0:00:15]}  hxg5+ {[%clk 0:00:03]} 57. fxg5 {[%clk 0:00:16]}  fxg5+ {[%clk 0:00:03]} 58. Kxg5 {[%clk 0:00:17]}  Kf8 {[%clk 0:00:01]} 59. f6 {[%clk 0:00:16]}  Ke8 {[%clk 0:00:02]} 60. Kf4 {[%clk 0:00:16]}  Kf8 {[%clk 0:00:02]} 61. Kxf3 {[%clk 0:00:15]} 1-0


[Site "https://www.chess.com"]

[Event "Titled Tuesday Blitz June 20 Early 2023"]
[White "Bueno, Alfeu Junior Varela"]
[Black "Delorme, Axel"]
[WhiteFideId "2108879"]
[BlackFideId "632023"]
[WhiteElo "2175"]
[BlackElo "2478"]
[Result "0-1"]
[Round "8"]
[TimeControl "180+2"]
[Date "2023.06.20"]
[WhiteClock "0:00:22"]
[BlackClock "0:00:11"]
[Board "129"]

1. e4 {[%clk 0:02:46]}  c5 {[%clk 0:02:59]} 2. Nc3 {[%clk 0:02:46]}  a6 {[%clk 0:02:59]} 3. g3 {[%clk 0:02:46]}  b5 {[%clk 0:02:58]} 4. Bg2 {[%clk 0:02:46]}  Bb7 {[%clk 0:02:59]} 5. d3 {[%clk 0:02:47]}  e6 {[%clk 0:03:00]} 6. f4 {[%clk 0:02:46]}  d5 {[%clk 0:03:00]} 7. exd5 {[%clk 0:02:45]}  Nf6 {[%clk 0:03:00]} 8. Qe2 {[%clk 0:02:39]}  Nxd5 {[%clk 0:02:57]} 9. Nxd5 {[%clk 0:02:37]}  Bxd5 {[%clk 0:02:58]} 10. Nf3 {[%clk 0:02:37]}  Be7 {[%clk 0:02:46]} 11. O-O {[%clk 0:02:28]}  O-O {[%clk 0:02:47]} 12. Ne5 {[%clk 0:02:28]}  Re8 {[%clk 0:02:17]} 13. f5 {[%clk 0:02:08]}  Bf6 {[%clk 0:02:04]} 14. Ng4 {[%clk 0:01:43]}  Bd4+ {[%clk 0:02:02]} 15. Kh1 {[%clk 0:01:41]}  exf5 {[%clk 0:01:51]} 16. Ne3 {[%clk 0:01:35]}  Bxe3 {[%clk 0:01:32]} 17. Bxe3 {[%clk 0:01:36]}  Nc6 {[%clk 0:01:26]} 18. Rae1 {[%clk 0:01:29]}  Qd7 {[%clk 0:01:05]} 19. Qf2 {[%clk 0:01:20]}  Bxg2+ {[%clk 0:00:59]} 20. Qxg2 {[%clk 0:01:20]}  Nd4 {[%clk 0:00:55]} 21. c3 {[%clk 0:01:00]}  Ne6 {[%clk 0:00:46]} 22. Rxf5 {[%clk 0:01:00]}  Qxd3 {[%clk 0:00:45]} 23. Qf2 {[%clk 0:00:50]}  f6 {[%clk 0:00:21]} 24. Bxc5 {[%clk 0:00:39]}  Nxc5 {[%clk 0:00:22]} 25. Rxc5 {[%clk 0:00:38]}  Rad8 {[%clk 0:00:13]} 26. Rc7 {[%clk 0:00:29]}  Rxe1+ {[%clk 0:00:12]} 27. Qxe1 {[%clk 0:00:30]}  Qf3+ {[%clk 0:00:12]} 28. Kg1 {[%clk 0:00:25]}  Rd1 {[%clk 0:00:13]} 29. Rc8+ {[%clk 0:00:24]}  Kf7 {[%clk 0:00:13]} 30. Rc7+ {[%clk 0:00:23]}  Kg6 {[%clk 0:00:13]} 31. Re7 {[%clk 0:00:23]}  Rxe1+ {[%clk 0:00:11]} 32. Rxe1 {[%clk 0:00:22]}  h5 {[%clk 0:00:11]} 0-1


[Site "https://www.chess.com"]

[Event "Titled Tuesday Blitz June 20 Early 2023"]
[White "Reprintsev, Alexander"]
[Black "Ziatdinov, Raset"]
[WhiteFideId "14100541"]
[BlackFideId "2015323"]
[WhiteElo "2229"]
[BlackElo "2220"]
[Result "1/2-1/2"]
[Round "8"]
[TimeControl "180+2"]
[Date "2023.06.20"]
[WhiteClock "0:00:22"]
[BlackClock "0:00:22"]
[Board "130"]

1. e4 {[%clk 0:03:00]}  c5 {[%clk 0:02:58]} 2. b3 {[%clk 0:03:00]}  Nc6 {[%clk 0:02:57]} 3. Bb2 {[%clk 0:03:00]}  Nf6 {[%clk 0:02:58]} 4. e5 {[%clk 0:02:59]}  Nd5 {[%clk 0:02:58]} 5. Nf3 {[%clk 0:02:56]}  e6 {[%clk 0:02:57]} 6. g3 {[%clk 0:02:52]}  Be7 {[%clk 0:02:57]} 7. c4 {[%clk 0:02:52]}  Nc7 {[%clk 0:02:37]} 8. Bg2 {[%clk 0:02:18]}  O-O {[%clk 0:02:35]} 9. d4 {[%clk 0:01:51]}  cxd4 {[%clk 0:02:34]} 10. Nxd4 {[%clk 0:01:40]}  Bb4+ {[%clk 0:02:14]} 11. Bc3 {[%clk 0:01:36]}  Qe7 {[%clk 0:02:11]} 12. Nxc6 {[%clk 0:01:33]}  dxc6 {[%clk 0:02:11]} 13. O-O {[%clk 0:01:32]}  Na6 {[%clk 0:02:06]} 14. a3 {[%clk 0:01:29]}  Bxc3 {[%clk 0:02:01]} 15. Nxc3 {[%clk 0:01:29]}  Rd8 {[%clk 0:02:00]} 16. Qc2 {[%clk 0:01:27]}  Nc5 {[%clk 0:02:00]} 17. Rad1 {[%clk 0:01:22]}  a5 {[%clk 0:01:57]} 18. Rxd8+ {[%clk 0:01:21]}  Qxd8 {[%clk 0:01:57]} 19. Rd1 {[%clk 0:01:22]}  Qc7 {[%clk 0:01:54]} 20. b4 {[%clk 0:01:15]}  axb4 {[%clk 0:01:53]} 21. axb4 {[%clk 0:01:15]}  Nd7 {[%clk 0:01:51]} 22. f4 {[%clk 0:01:15]}  Qb6+ {[%clk 0:01:51]} 23. c5 {[%clk 0:01:09]}  Qxb4 {[%clk 0:01:51]} 24. Ne4 {[%clk 0:01:09]}  h6 {[%clk 0:01:49]} 25. h4 {[%clk 0:01:08]}  b6 {[%clk 0:01:38]} 26. cxb6 {[%clk 0:01:07]}  Qxb6+ {[%clk 0:01:37]} 27. Kh2 {[%clk 0:01:07]}  Nf8 {[%clk 0:01:27]} 28. Nd6 {[%clk 0:01:00]}  Bd7 {[%clk 0:01:19]} 29. h5 {[%clk 0:00:56]}  Ra3 {[%clk 0:01:11]} 30. Rd2 {[%clk 0:00:55]}  Qe3 {[%clk 0:01:10]} 31. Ne4 {[%clk 0:00:54]}  Bc8 {[%clk 0:00:49]} 32. Re2 {[%clk 0:00:54]}  Qb6 {[%clk 0:00:46]} 33. Nc5 {[%clk 0:00:53]}  Ba6 {[%clk 0:00:43]} 34. Nxa6 {[%clk 0:00:52]}  Rxa6 {[%clk 0:00:42]} 35. Rd2 {[%clk 0:00:52]}  Ra3 {[%clk 0:00:42]} 36. Qe4 {[%clk 0:00:46]}  Qb3 {[%clk 0:00:40]} 37. Qe1 {[%clk 0:00:42]}  Qc3 {[%clk 0:00:37]} 38. Re2 {[%clk 0:00:39]}  c5 {[%clk 0:00:36]} 39. Qxc3 {[%clk 0:00:39]}  Rxc3 {[%clk 0:00:36]} 40. Ra2 {[%clk 0:00:39]}  g6 {[%clk 0:00:35]} 41. hxg6 {[%clk 0:00:37]}  Nxg6 {[%clk 0:00:34]} 42. Ra7 {[%clk 0:00:37]}  h5 {[%clk 0:00:33]} 43. Be4 {[%clk 0:00:34]}  h4 {[%clk 0:00:32]} 44. Bxg6 {[%clk 0:00:29]}  hxg3+ {[%clk 0:00:32]} 45. Kg2 {[%clk 0:00:29]}  fxg6 {[%clk 0:00:32]} 46. Re7 {[%clk 0:00:30]}  Re3 {[%clk 0:00:29]} 47. Rxe6 {[%clk 0:00:30]}  Kf7 {[%clk 0:00:29]} 48. Rf6+ {[%clk 0:00:28]}  Kg7 {[%clk 0:00:29]} 49. Rc6 {[%clk 0:00:28]}  Rc3 {[%clk 0:00:29]} 50. Rc7+ {[%clk 0:00:26]}  Kf8 {[%clk 0:00:28]} 51. e6 {[%clk 0:00:25]}  Re3 {[%clk 0:00:27]} 52. Rxc5 {[%clk 0:00:23]}  Ke7 {[%clk 0:00:26]} 53. Re5 {[%clk 0:00:20]}  Rxe5 {[%clk 0:00:26]} 54. fxe5 {[%clk 0:00:21]}  Kxe6 {[%clk 0:00:26]} 55. Kxg3 {[%clk 0:00:22]}  Kxe5 {[%clk 0:00:26]} 56. Kg4 {[%clk 0:00:22]}  Kf6 {[%clk 0:00:22]} 57. Kf4 {[%clk 0:00:22]} 1/2-1/2


[Site "https://www.chess.com"]

[Event "Titled Tuesday Blitz June 20 Early 2023"]
[White "Jiganchine, Roman"]
[Black "Papayan, Oleg"]
[WhiteFideId "2603667"]
[BlackFideId "4193911"]
[WhiteElo "2329"]
[BlackElo "2167"]
[Result "1-0"]
[Round "8"]
[TimeControl "180+2"]
[Date "2023.06.20"]
[WhiteClock "0:00:01"]
[BlackClock "0:00:00"]
[Board "132"]

1. e4 {[%clk 0:02:58]}  e5 {[%clk 0:03:00]} 2. Nf3 {[%clk 0:02:58]}  Nc6 {[%clk 0:03:00]} 3. Nc3 {[%clk 0:02:58]}  Nf6 {[%clk 0:03:00]} 4. Bb5 {[%clk 0:02:58]}  Nd4 {[%clk 0:03:00]} 5. O-O {[%clk 0:02:54]}  Nxb5 {[%clk 0:02:59]} 6. Nxb5 {[%clk 0:02:53]}  c6 {[%clk 0:02:54]} 7. Nc3 {[%clk 0:02:53]}  d6 {[%clk 0:02:54]} 8. d4 {[%clk 0:02:53]}  Qc7 {[%clk 0:02:54]} 9. h3 {[%clk 0:02:47]}  Be7 {[%clk 0:02:51]} 10. Bg5 {[%clk 0:02:46]}  O-O {[%clk 0:02:50]} 11. a4 {[%clk 0:02:44]}  a5 {[%clk 0:02:48]} 12. Qd3 {[%clk 0:02:41]}  b6 {[%clk 0:02:38]} 13. Rfd1 {[%clk 0:02:40]}  Ba6 {[%clk 0:02:38]} 14. Qd2 {[%clk 0:02:36]}  Rfe8 {[%clk 0:01:51]} 15. Bxf6 {[%clk 0:02:17]}  Bxf6 {[%clk 0:01:51]} 16. d5 {[%clk 0:02:17]}  c5 {[%clk 0:01:43]} 17. Ne2 {[%clk 0:01:54]}  g6 {[%clk 0:01:41]} 18. Ng3 {[%clk 0:01:46]}  Bg7 {[%clk 0:01:39]} 19. h4 {[%clk 0:01:45]}  Rf8 {[%clk 0:01:29]} 20. h5 {[%clk 0:01:42]}  f5 {[%clk 0:01:29]} 21. h6 {[%clk 0:01:37]}  Bh8 {[%clk 0:01:21]} 22. exf5 {[%clk 0:01:35]}  e4 {[%clk 0:01:11]} 23. Ng5 {[%clk 0:01:07]}  Bxb2 {[%clk 0:00:52]} 24. fxg6 {[%clk 0:00:57]}  Bxa1 {[%clk 0:00:34]} 25. gxh7+ {[%clk 0:00:49]}  Kh8 {[%clk 0:00:35]} 26. Rxa1 {[%clk 0:00:49]}  Qe7 {[%clk 0:00:20]} 27. Re1 {[%clk 0:00:43]}  e3 {[%clk 0:00:18]} 28. Qc3+ {[%clk 0:00:32]}  Qf6 {[%clk 0:00:18]} 29. Qxe3 {[%clk 0:00:27]}  Qxh6 {[%clk 0:00:11]} 30. Nh5 {[%clk 0:00:20]}  Qg6 {[%clk 0:00:01]} 31. Qc3+ {[%clk 0:00:17]}  Rf6 {[%clk 0:00:01]} 32. Qxf6+ {[%clk 0:00:12]}  Qxf6 {[%clk 0:00:02]} 33. Nxf6 {[%clk 0:00:13]}  Rf8 {[%clk 0:00:02]} 34. Re6 {[%clk 0:00:06]}  Bc8 {[%clk 0:00:01]} 35. Rxd6 {[%clk 0:00:06]}  Kg7 {[%clk 0:00:02]} 36. Rxb6 {[%clk 0:00:05]}  Bf5 {[%clk 0:00:01]} 37. g4 {[%clk 0:00:03]}  Bxc2 {[%clk 0:00:00]} 38. Nd7 {[%clk 0:00:01]} 1-0


[Site "https://www.chess.com"]

[Event "Titled Tuesday Blitz June 20 Early 2023"]
[White "Manukian, Artak"]
[Black "Samaganova, Aleksandra"]
[WhiteFideId "13301373"]
[BlackFideId "13800221"]
[WhiteElo "2130"]
[BlackElo "1858"]
[Result "1-0"]
[Round "8"]
[TimeControl "180+2"]
[Date "2023.06.20"]
[WhiteClock "0:00:13"]
[BlackClock "0:00:00"]
[Board "138"]

1. e4 {[%clk 0:02:55]}  c5 {[%clk 0:02:59]} 2. Nf3 {[%clk 0:02:55]}  e6 {[%clk 0:02:58]} 3. c3 {[%clk 0:02:55]}  Nf6 {[%clk 0:02:58]} 4. e5 {[%clk 0:02:54]}  Nd5 {[%clk 0:02:56]} 5. d4 {[%clk 0:02:55]}  cxd4 {[%clk 0:02:56]} 6. cxd4 {[%clk 0:02:52]}  d6 {[%clk 0:02:57]} 7. Nc3 {[%clk 0:02:51]}  Nxc3 {[%clk 0:02:52]} 8. bxc3 {[%clk 0:02:52]}  dxe5 {[%clk 0:02:51]} 9. Nxe5 {[%clk 0:02:51]}  Bd6 {[%clk 0:02:49]} 10. Bb5+ {[%clk 0:02:45]}  Bd7 {[%clk 0:02:40]} 11. Nxd7 {[%clk 0:02:39]}  Nxd7 {[%clk 0:02:36]} 12. O-O {[%clk 0:02:37]}  O-O {[%clk 0:02:31]} 13. a4 {[%clk 0:02:31]}  Nf6 {[%clk 0:02:25]} 14. Bg5 {[%clk 0:02:29]}  Be7 {[%clk 0:02:21]} 15. Qf3 {[%clk 0:02:26]}  h6 {[%clk 0:02:00]} 16. Bh4 {[%clk 0:02:20]}  a6 {[%clk 0:01:51]} 17. Bd3 {[%clk 0:02:10]}  Nd5 {[%clk 0:01:40]} 18. Qe4 {[%clk 0:02:06]}  g6 {[%clk 0:01:34]} 19. Bxe7 {[%clk 0:02:05]}  Qxe7 {[%clk 0:01:33]} 20. c4 {[%clk 0:02:02]}  Nb4 {[%clk 0:01:32]} 21. Be2 {[%clk 0:01:53]}  Qc7 {[%clk 0:01:10]} 22. h4 {[%clk 0:01:39]}  h5 {[%clk 0:01:05]} 23. Rfd1 {[%clk 0:01:29]}  Rfd8 {[%clk 0:00:55]} 24. d5 {[%clk 0:01:09]}  e5 {[%clk 0:00:42]} 25. Rac1 {[%clk 0:00:54]}  b6 {[%clk 0:00:37]} 26. a5 {[%clk 0:00:49]}  Rac8 {[%clk 0:00:16]} 27. axb6 {[%clk 0:00:45]}  Qxb6 {[%clk 0:00:16]} 28. Qxe5 {[%clk 0:00:44]}  Qc5 {[%clk 0:00:11]} 29. Qg5 {[%clk 0:00:40]}  Kh7 {[%clk 0:00:06]} 30. Rc3 {[%clk 0:00:35]}  Rd6 {[%clk 0:00:05]} 31. Rf3 {[%clk 0:00:30]}  Rc7 {[%clk 0:00:06]} 32. Rf4 {[%clk 0:00:26]}  a5 {[%clk 0:00:05]} 33. Bxh5 {[%clk 0:00:21]}  gxh5 {[%clk 0:00:05]} 34. Qxh5+ {[%clk 0:00:20]}  Rh6 {[%clk 0:00:03]} 35. Rxf7+ {[%clk 0:00:16]}  Rxf7 {[%clk 0:00:04]} 36. Qxf7+ {[%clk 0:00:17]}  Kh8 {[%clk 0:00:04]} 37. Re1 {[%clk 0:00:16]}  Qc8 {[%clk 0:00:01]} 38. Re8+ {[%clk 0:00:16]}  Qxe8 {[%clk 0:00:02]} 39. Qxe8+ {[%clk 0:00:17]}  Kg7 {[%clk 0:00:03]} 40. Qe5+ {[%clk 0:00:15]}  Kh7 {[%clk 0:00:02]} 41. d6 {[%clk 0:00:14]}  Nc6 {[%clk 0:00:01]} 42. Qe4+ {[%clk 0:00:14]}  Rg6 {[%clk 0:00:02]} 43. Qxc6 {[%clk 0:00:14]}  Kh6 {[%clk 0:00:02]} 44. Qd5 {[%clk 0:00:13]}  Rf6 {[%clk 0:00:00]} 45. d7 {[%clk 0:00:13]} 1-0


[Site "https://www.chess.com"]

[Event "Titled Tuesday Blitz June 20 Early 2023"]
[White "Balla, Tamas-Kristof"]
[Black "Ardila, Oscar Humberto"]
[WhiteFideId "1208497"]
[BlackFideId "4404742"]
[WhiteElo "2334"]
[BlackElo "1912"]
[Result "1-0"]
[Round "8"]
[TimeControl "180+2"]
[Date "2023.06.20"]
[WhiteClock "0:00:20"]
[BlackClock "0:00:05"]
[Board "139"]

1. e4 {[%clk 0:03:00]}  e5 {[%clk 0:02:53]} 2. Nf3 {[%clk 0:02:59]}  Nf6 {[%clk 0:02:54]} 3. Nxe5 {[%clk 0:02:59]}  d6 {[%clk 0:02:54]} 4. Nf3 {[%clk 0:02:59]}  Nxe4 {[%clk 0:02:54]} 5. Nc3 {[%clk 0:02:59]}  Nxc3 {[%clk 0:02:54]} 6. dxc3 {[%clk 0:03:00]}  Be7 {[%clk 0:02:55]} 7. Bc4 {[%clk 0:02:56]}  O-O {[%clk 0:02:56]} 8. h4 {[%clk 0:02:56]}  Nd7 {[%clk 0:02:55]} 9. Ng5 {[%clk 0:02:54]}  Nf6 {[%clk 0:02:53]} 10. Be3 {[%clk 0:02:46]}  d5 {[%clk 0:02:50]} 11. Bd3 {[%clk 0:02:42]}  c5 {[%clk 0:02:50]} 12. Qd2 {[%clk 0:02:32]}  Re8 {[%clk 0:02:34]} 13. O-O-O {[%clk 0:02:29]}  Qa5 {[%clk 0:02:21]} 14. Kb1 {[%clk 0:02:27]}  b5 {[%clk 0:02:18]} 15. Rhe1 {[%clk 0:02:20]}  c4 {[%clk 0:02:15]} 16. Be2 {[%clk 0:02:15]}  b4 {[%clk 0:02:15]} 17. cxb4 {[%clk 0:02:11]}  Bxb4 {[%clk 0:02:14]} 18. c3 {[%clk 0:02:11]}  Bf5+ {[%clk 0:02:08]} 19. Ka1 {[%clk 0:02:10]}  Be7 {[%clk 0:01:44]} 20. Bd4 {[%clk 0:02:00]}  h6 {[%clk 0:01:41]} 21. Nf3 {[%clk 0:01:45]}  Rab8 {[%clk 0:01:32]} 22. Ne5 {[%clk 0:01:43]}  Rb5 {[%clk 0:01:15]} 23. Nxc4 {[%clk 0:01:24]}  dxc4 {[%clk 0:01:09]} 24. Bxc4 {[%clk 0:01:24]}  Rbb8 {[%clk 0:01:04]} 25. f3 {[%clk 0:01:03]}  Qa4 {[%clk 0:00:56]} 26. b3 {[%clk 0:00:50]}  Qa3 {[%clk 0:00:42]} 27. g4 {[%clk 0:00:49]}  Bg6 {[%clk 0:00:36]} 28. g5 {[%clk 0:00:37]}  hxg5 {[%clk 0:00:33]} 29. Qxg5 {[%clk 0:00:25]}  Bc2 {[%clk 0:00:20]} 30. Rg1 {[%clk 0:00:20]}  g6 {[%clk 0:00:05]} 31. Bxf6 {[%clk 0:00:20]}  Bxd1 {[%clk 0:00:05]} 32. Qxg6+ {[%clk 0:00:19]}  Kf8 {[%clk 0:00:05]} 33. Qg7# {[%clk 0:00:20]} 1-0


[Site "https://www.chess.com"]

[Event "Titled Tuesday Blitz June 20 Early 2023"]
[White "Matveeva, Olga"]
[Black "Sarkar, Justin"]
[WhiteFideId "24107018"]
[BlackFideId "2010011"]
[WhiteElo "2009"]
[BlackElo "2151"]
[Result "1-0"]
[Round "8"]
[TimeControl "180+2"]
[Date "2023.06.20"]
[WhiteClock "0:00:28"]
[BlackClock "0:00:00"]
[Board "140"]

1. d4 {[%clk 0:03:00]}  Nf6 {[%clk 0:02:45]} 2. c4 {[%clk 0:03:00]}  e6 {[%clk 0:02:44]} 3. g3 {[%clk 0:03:01]}  d5 {[%clk 0:02:44]} 4. Nf3 {[%clk 0:03:01]}  Bb4+ {[%clk 0:02:42]} 5. Bd2 {[%clk 0:03:00]}  Be7 {[%clk 0:02:42]} 6. Bg2 {[%clk 0:03:01]}  O-O {[%clk 0:02:42]} 7. O-O {[%clk 0:03:01]}  c6 {[%clk 0:02:41]} 8. Qc2 {[%clk 0:03:02]}  Nbd7 {[%clk 0:02:36]} 9. Rd1 {[%clk 0:03:01]}  b6 {[%clk 0:02:31]} 10. Bf4 {[%clk 0:03:02]}  Nh5 {[%clk 0:02:29]} 11. Bc1 {[%clk 0:03:00]}  Nhf6 {[%clk 0:02:22]} 12. Ne5 {[%clk 0:02:59]}  Bb7 {[%clk 0:02:11]} 13. Nc3 {[%clk 0:02:57]}  Rc8 {[%clk 0:01:43]} 14. e4 {[%clk 0:02:53]}  dxc4 {[%clk 0:01:30]} 15. Nxc4 {[%clk 0:02:50]}  b5 {[%clk 0:01:29]} 16. Ne3 {[%clk 0:02:39]}  b4 {[%clk 0:01:26]} 17. Na4 {[%clk 0:02:38]}  c5 {[%clk 0:01:22]} 18. dxc5 {[%clk 0:02:34]}  Qc7 {[%clk 0:00:53]} 19. Bd2 {[%clk 0:02:15]}  Nxc5 {[%clk 0:00:29]} 20. Nxc5 {[%clk 0:02:11]}  Bxc5 {[%clk 0:00:26]} 21. Rac1 {[%clk 0:02:08]}  Qb6 {[%clk 0:00:21]} 22. Qb1 {[%clk 0:01:35]}  Rfd8 {[%clk 0:00:21]} 23. e5 {[%clk 0:01:12]}  Rxd2 {[%clk 0:00:15]} 24. Rxd2 {[%clk 0:01:05]}  Bxe3 {[%clk 0:00:13]} 25. Rxc8+ {[%clk 0:01:03]}  Bxc8 {[%clk 0:00:12]} 26. Qc2 {[%clk 0:00:47]}  Bc5 {[%clk 0:00:03]} 27. exf6 {[%clk 0:00:42]}  gxf6 {[%clk 0:00:03]} 28. Qc4 {[%clk 0:00:36]}  Ba6 {[%clk 0:00:03]} 29. Qg4+ {[%clk 0:00:35]}  Kf8 {[%clk 0:00:03]} 30. Qf4 {[%clk 0:00:32]}  Qb5 {[%clk 0:00:03]} 31. Qxf6 {[%clk 0:00:28]}  Qf1+ {[%clk 0:00:00]} 32. Bxf1 {[%clk 0:00:28]} 1-0


[Site "https://www.chess.com"]